bitfinex-derivatives/quotes_BTCF0:USTF0_20250422
["timestamp","ask_amount","ask_price","bid_price","bid_amount"]
[1745364117503,0.4008612,93027.0,93026.0,0.00416123]
[1745364118397,0.4008612,93027.0,93026.0,0.00316123]
[1745364118603,0.4008612,93027.0,93026.0,0.00416123]
[1745364119709,0.4008612,93027.0,93026.0,0.01237754]
[1745364119905,0.4008612,93027.0,93026.0,0.00416123]
[1745364121407,0.1074739,93016.0,93015.0,0.00537545]
[1745364121608,0.1074739,93016.0,93003.0,0.1342]
[1745364121609,0.0537404,93010.0,93003.0,0.5014]
[1745364121810,0.49043595,93013.0,92985.0,0.3608]
[1745364122107,0.1075074,92987.0,92986.0,0.1356]
[1745364123105,0.1075074,92987.0,92986.0,0.3276]
[1745364123106,0.3817074,92987.0,92986.0,0.3276]
[1745364123306,0.39465208,92987.0,92986.0,0.21289227]
[1745364124005,0.39465208,92987.0,92986.0,0.34849227]
[1745364124205,0.39465208,92987.0,92986.0,0.15649227]
[1745364125003,0.39565208,92987.0,92986.0,0.15949227]
[1745364126906,0.39565208,92987.0,92986.0,0.15249227]
[1745364127101,0.39565208,92987.0,92986.0,0.15949227]
[1745364129214,0.39565208,92987.0,92986.0,0.35149227]
[1745364132211,0.39565208,92987.0,92986.0,0.21589227]
[1745364133005,0.0537407,93010.0,92992.0,0.0537507]
[1745364133308,0.10765823,92996.0,92995.0,0.3608]
[1745364134014,0.1074994,92994.0,92993.0,0.1402]
[1745364134503,0.1075005,92993.0,92992.0,0.005]
[1745364134709,0.1075051,92989.0,92988.0,0.1364]
[1745364134906,0.1075098,92985.0,92984.0,0.1364]
[1745364135709,0.1422,92988.0,92984.0,0.19835692]
[1745364136017,0.1075014,92993.0,92992.0,0.1075005]
[1745364136213,0.001,92994.0,92993.0,0.09622407]
[1745364136406,0.001,92994.0,92993.0,0.51192407]
[1745364136607,0.1074682,93021.0,92993.0,0.773236]
[1745364136809,0.2853,93024.0,93011.0,0.0537398]
[1745364137015,0.1074774,93013.0,93012.0,0.3926784]
[1745364137712,0.1074774,93013.0,93012.0,0.1445]
[1745364138021,0.1074786,93012.0,93011.0,0.192]
[1745364138214,0.1074878,93004.0,93003.0,0.00016123]
[1745364138517,0.1074901,93002.0,93001.0,0.60715203]
[1745364139320,0.1074901,93002.0,93001.0,0.79915203]
[1745364140620,0.1074901,93002.0,93001.0,0.80415203]
[1745364141013,0.1084901,93002.0,93001.0,0.81015203]
[1745364144923,0.1084901,93002.0,93001.0,0.4501908]
[1745364145616,0.001,93002.0,93001.0,0.8109908]
[1745364146020,0.1074814,93012.0,93011.0,0.1612163]
[1745364146225,0.1074901,93002.0,93001.0,0.7035]
[1745364146523,0.1074901,93002.0,93001.0,0.203]
[1745364147120,0.1074901,93002.0,93001.0,0.006]
[1745364147318,0.1075005,92993.0,92985.0,0.1411]
[1745364148121,0.3840005,92993.0,92985.0,0.1411]
[1745364148717,0.3850005,92993.0,92992.0,0.00716123]
[1745364149120,0.3860005,92993.0,92992.0,0.01616123]
[1745364151317,0.1095005,92993.0,92992.0,0.20816123]
[1745364152123,0.3941005,92993.0,92992.0,0.20816123]
[1745364152929,0.3941005,92993.0,92992.0,0.48926123]
[1745364155328,0.3941005,92993.0,92992.0,0.34866123]
[1745364156429,0.3941005,92993.0,92992.0,0.20816123]
[1745364156723,0.3941005,92993.0,92992.0,0.20116123]
[1745364156929,0.3961005,92993.0,92992.0,0.19216123]
[1745364157222,0.3951005,92993.0,92992.0,0.19216123]
[1745364157428,0.3961005,92993.0,92992.0,0.19216123]
[1745364157723,0.3951005,92993.0,92992.0,0.19216123]
[1745364157922,0.3961005,92993.0,92992.0,0.19216123]
[1745364158919,0.7536365,92993.0,92992.0,0.19216123]
[1745364159224,0.1075098,92985.0,92984.0,0.00820152]
[1745364159418,0.1075155,92980.0,92972.0,0.1352]
[1745364159819,0.1075155,92980.0,92974.0,0.1075218]
[1745364160128,0.1075155,92980.0,92979.0,0.19361327]
[1745364160331,0.2467155,92980.0,92979.0,0.19361327]
[1745364160825,0.2467155,92980.0,92979.0,0.19561327]
[1745364161231,0.1392,92980.0,92979.0,0.19461327]
[1745364161528,0.107526,92971.0,92970.0,0.00016132]
[1745364161716,0.107541,92958.0,92957.0,0.1452]
[1745364161922,0.107541,92958.0,92957.0,0.15324273]
[1745364162122,0.107541,92958.0,92957.0,0.34524273]
[1745364162622,0.396241,92958.0,92957.0,0.34524273]
[1745364163223,0.250441,92958.0,92957.0,0.70604273]
[1745364163424,0.250441,92958.0,92957.0,0.71304273]
[1745364163425,0.251441,92958.0,92957.0,0.71304273]
[1745364164015,0.251441,92958.0,92957.0,0.71104273]
[1745364164421,0.252441,92958.0,92957.0,0.71604273]
[1745364165026,0.252441,92958.0,92957.0,0.71504273]
[1745364165329,0.252441,92958.0,92957.0,0.85444273]
[1745364166627,0.252441,92958.0,92957.0,0.57084273]
[1745364167127,0.252441,92958.0,92957.0,0.56584273]
[1745364167330,0.252441,92958.0,92957.0,0.57084273]
[1745364169726,0.502476,92958.0,92922.0,0.3608]
[1745364169920,0.12963595,92950.0,92929.0,0.2882]
[1745364170124,0.1075734,92930.0,92929.0,0.2882]
[1745364170331,0.1075734,92930.0,92929.0,0.1453]
[1745364171024,0.145,92935.0,92930.0,0.1075728]
[1745364171223,0.1075721,92932.0,92931.0,0.3851711]
[1745364171728,0.1075721,92932.0,92931.0,0.2776]
[1745364172119,0.1075721,92932.0,92931.0,0.192]
[1745364172525,0.3876721,92932.0,92931.0,0.192]
[1745364172933,0.3886721,92932.0,92931.0,0.199]
[1745364173133,0.3886721,92932.0,92931.0,0.007]
[1745364173525,0.1075745,92929.0,92928.0,0.00967842]
[1745364174631,0.1085745,92929.0,92928.0,0.01167842]
[1745364175432,0.1085745,92929.0,92928.0,0.20367842]
[1745364176538,0.1095745,92929.0,92928.0,0.20867842]
[1745364176934,0.1095745,92929.0,92928.0,0.35777842]
[1745364178135,0.1095745,92929.0,92928.0,0.20867842]
[1745364179336,0.1095745,92929.0,92928.0,0.01667842]
[1745364179636,0.3947745,92929.0,92928.0,0.01667842]
[1745364180036,0.2872,92929.0,92928.0,0.37747842]
[1745364180235,0.01171266,92938.0,92928.0,0.56947842]
[1745364180436,0.1465,92940.0,92937.0,0.3608]
[1745364180738,0.1387,92944.0,92938.0,0.3809641]
[1745364180941,0.10772441,92939.0,92938.0,0.2734]
[1745364181141,0.11976292,92939.0,92938.0,0.452212]
[1745364182730,0.12076292,92939.0,92938.0,0.452212]
[1745364182933,0.25826292,92939.0,92938.0,0.452212]
[1745364183134,0.00116141,92939.0,92938.0,0.452212]
[1745364183335,0.001,92939.0,92938.0,0.815812]
[1745364183543,0.13610683,92960.0,92938.0,0.821812]
[1745364183738,0.13610683,92960.0,92959.0,0.4683398]
[1745364184137,0.13610683,92960.0,92959.0,0.6603398]
[1745364185037,0.13610683,92960.0,92959.0,0.9381398]
[1745364185650,0.13710683,92960.0,92959.0,1.0457118]
[1745364185853,0.001,92960.0,92959.0,1.0457118]
[1745364186060,0.001,92960.0,92959.0,0.9401398]
[1745364186449,0.00016141,92969.0,92968.0,0.1075294]
[1745364186658,0.00016141,92969.0,92968.0,0.45637001]
[1745364187054,0.00016141,92969.0,92968.0,0.64837001]
[1745364187557,0.00016141,92969.0,92968.0,0.94657001]
[1745364187859,0.10768971,92969.0,92968.0,0.851]
[1745364188052,0.10768971,92969.0,92968.0,0.703]
[1745364188355,0.10768971,92969.0,92968.0,0.5538]
[1745364189160,0.10768971,92969.0,92968.0,0.3618]
[1745364189559,0.10868971,92969.0,92968.0,0.3618]
[1745364189860,0.10868971,92969.0,92968.0,0.3608]
[1745364190161,0.11068971,92969.0,92968.0,0.3638]
[1745364190459,0.11068971,92969.0,92968.0,0.3618]
[1745364190659,0.11168971,92969.0,92968.0,0.3618]
[1745364191052,0.11068971,92969.0,92968.0,0.3618]
[1745364191761,0.10768971,92969.0,92968.0,0.3608]
[1745364191961,0.10868971,92969.0,92968.0,0.3608]
[1745364192661,0.11068971,92969.0,92968.0,0.3618]
[1745364193260,0.11068971,92969.0,92968.0,0.5538]
[1745364193564,0.11168971,92969.0,92968.0,0.5538]
[1745364193964,0.00316141,92969.0,92968.0,0.5538]
[1745364194261,0.00316141,92969.0,92968.0,0.6613294]
[1745364194658,0.00416141,92969.0,92968.0,0.9407294]
[1745364194852,0.00116141,92969.0,92968.0,0.9397294]
[1745364195058,0.0537485,92996.0,92987.0,0.1075074]
[1745364195258,0.2906,92994.0,92987.0,0.3608]
[1745364195458,0.10912094,92988.0,92987.0,0.3608]
[1745364196157,0.10912094,92988.0,92987.0,0.501]
[1745364196555,0.25872094,92988.0,92987.0,0.502]
[1745364197354,0.25872094,92988.0,92987.0,0.3618]
[1745364197560,0.40532094,92988.0,92987.0,0.3618]
[1745364197862,0.40532094,92988.0,92981.0,0.192]
[1745364197863,0.1075132,92982.0,92981.0,0.192]
[1745364198257,0.1075167,92979.0,92967.0,0.1361]
[1745364198455,0.1075167,92979.0,92970.0,0.0866]
[1745364198770,0.1075236,92973.0,92967.0,0.1361]
[1745364199464,0.3608,92973.0,92947.0,0.3608]
[1745364199767,0.4683526,92948.0,92947.0,0.00787692]
[1745364199968,0.0537771,92947.0,92933.0,0.4683691]
[1745364200172,0.1075589,92943.0,92938.0,0.10772491]
[1745364200362,0.0537774,92946.0,92939.0,0.1427]
[1745364200560,0.1075618,92940.0,92939.0,0.1427]
[1745364200761,0.1075618,92940.0,92939.0,0.2908]
[1745364201161,0.1075618,92940.0,92939.0,0.4828]
[1745364202465,0.1075618,92940.0,92939.0,0.4908]
[1745364202773,0.1085618,92940.0,92939.0,0.4998]
[1745364202970,0.1095618,92940.0,92939.0,0.4998]
[1745364203164,0.002,92940.0,92939.0,0.607363]
[1745364203359,0.1075526,92948.0,92947.0,0.1075526]
[1745364203563,0.1075526,92948.0,92947.0,0.7435526]
[1745364203759,0.1075526,92948.0,92947.0,0.88297406]
[1745364204159,0.1075526,92948.0,92947.0,1.07497406]
[1745364204763,0.1085526,92948.0,92947.0,1.08197406]
[1745364205170,0.1085526,92948.0,92947.0,0.708]
[1745364205371,0.2447526,92948.0,92947.0,0.716]
[1745364207471,0.2447526,92948.0,92947.0,0.5678]
[1745364207662,0.2447526,92948.0,92947.0,0.207]
[1745364207871,0.107563,92939.0,92938.0,0.00834224]
[1745364208063,0.3608,92939.0,92928.0,0.1356]
[1745364208369,0.3608,92939.0,92923.0,0.0866]
[1745364208370,0.1075803,92924.0,92923.0,0.0866]
[1745364208562,0.1075792,92925.0,92923.0,0.0866]
[1745364208767,0.1359,92924.0,92923.0,0.1941815]
[1745364209067,0.1075827,92922.0,92921.0,0.2794]
[1745364209264,0.1075838,92921.0,92915.0,0.3608]
[1745364209467,0.1075838,92921.0,92914.0,0.00016141]
[1745364209468,0.107585,92920.0,92914.0,0.00016141]
[1745364209678,0.246385,92920.0,92919.0,0.366181]
[1745364210172,0.246385,92920.0,92919.0,0.558181]
[1745364210372,0.246385,92920.0,92919.0,0.6657671]
[1745364210569,0.246385,92920.0,92919.0,0.558181]
[1745364211168,0.246385,92920.0,92919.0,0.835881]
[1745364211373,0.246385,92920.0,92919.0,0.70803782]
[1745364211867,0.247385,92920.0,92919.0,0.70903782]
[1745364212275,0.247385,92920.0,92919.0,0.70803782]
[1745364212574,0.248385,92920.0,92919.0,0.70903782]
[1745364212778,0.248385,92920.0,92919.0,0.34823782]
[1745364212975,0.248385,92920.0,92919.0,0.34723782]
[1745364213478,0.247385,92920.0,92919.0,0.34723782]
[1745364213878,0.248385,92920.0,92919.0,0.35023782]
[1745364214572,0.248385,92920.0,92919.0,0.34923782]
[1745364214771,0.248385,92920.0,92919.0,0.45682392]
[1745364215383,0.002,92920.0,92919.0,0.56444392]
[1745364215784,0.00016141,92930.0,92929.0,0.1075745]
[1745364215985,0.10773481,92930.0,92929.0,0.4683745]
[1745364216175,0.10773481,92930.0,92929.0,0.6603745]
[1745364216583,0.10773481,92930.0,92929.0,0.9335745]
[1745364217387,0.10873481,92930.0,92929.0,0.9365745]
[1745364217686,0.40303481,92930.0,92929.0,0.9365745]
[1745364218185,0.40403481,92930.0,92929.0,0.9385745]
[1745364220684,0.40403481,92930.0,92929.0,0.831]
[1745364221080,0.40403481,92930.0,92929.0,0.9385745]
[1745364221280,0.40403481,92930.0,92929.0,0.831]
[1745364221480,0.69403481,92930.0,92929.0,0.5578]
[1745364221676,0.69403481,92930.0,92929.0,0.197]
[1745364224581,0.00216141,92930.0,92929.0,0.3045745]
[1745364224782,0.10973481,92930.0,92929.0,0.3045745]
[1745364224976,0.10973481,92930.0,92929.0,0.197]
[1745364225386,0.00216141,92930.0,92929.0,0.3045745]
[1745364225780,0.00216141,92930.0,92929.0,0.4121825]
[1745364227890,0.00216141,92930.0,92929.0,0.3045745]
[1745364230694,0.10973481,92930.0,92929.0,0.3045745]
[1745364233597,0.10973481,92930.0,92929.0,0.197]
[1745364233804,0.40093481,92930.0,92929.0,0.3045745]
[1745364238490,0.40093481,92930.0,92929.0,0.197]
[1745364240398,0.40093481,92930.0,92929.0,0.3045745]
[1745364240399,0.00216141,92930.0,92929.0,0.3045745]
[1745364241901,0.10973481,92930.0,92929.0,0.3045745]
[1745364245304,0.0537823,92938.0,92935.0,0.1613486]
[1745364245498,0.053778,92945.0,92943.0,0.0537787]
[1745364245801,0.053778,92945.0,92944.0,0.387756]
[1745364246001,0.2959352,92945.0,92944.0,0.52455927]
[1745364246201,0.2959352,92945.0,92944.0,0.3287]
[1745364246401,0.2959352,92945.0,92944.0,0.4362572]
[1745364246601,0.2959352,92945.0,92944.0,0.4352572]
[1745364247303,0.2959352,92945.0,92944.0,0.4362572]
[1745364247800,0.2969352,92945.0,92944.0,0.4362572]
[1745364248899,0.1356,92945.0,92944.0,0.4362572]
[1745364249094,0.243156,92945.0,92944.0,0.4362572]
[1745364249294,0.244156,92945.0,92944.0,0.4352572]
[1745364250204,0.243156,92945.0,92944.0,0.4362572]
[1745364250607,0.242156,92945.0,92944.0,0.4372572]
[1745364251396,0.1346,92945.0,92944.0,0.4372572]
[1745364251600,0.1346,92945.0,92944.0,0.4362572]
[1745364251800,0.1376,92945.0,92944.0,0.4352572]
[1745364252002,0.13610683,92950.0,92949.0,0.1075514]
[1745364252200,0.1383,92957.0,92953.0,0.1075468]
[1745364252402,0.1383,92957.0,92953.0,0.4683468]
[1745364252605,0.1383,92957.0,92953.0,0.4663468]
[1745364252803,0.1075436,92956.0,92953.0,0.4663468]
[1745364253003,0.1383,92957.0,92953.0,0.4663468]
[1745364253204,0.1383,92957.0,92953.0,0.6583468]
[1745364254809,0.1383,92957.0,92953.0,0.6613468]
[1745364255015,0.10770701,92954.0,92953.0,0.6613468]
[1745364255201,0.00016141,92954.0,92953.0,0.6613468]
[1745364255807,0.00016141,92954.0,92953.0,0.8000468]
[1745364256303,0.00016141,92954.0,92953.0,0.7970468]
[1745364256503,0.00016141,92954.0,92953.0,0.8000468]
[1745364257112,0.00116141,92954.0,92953.0,0.8030468]
[1745364257722,0.00116141,92954.0,92953.0,0.6643468]
[1745364258521,0.24980701,92954.0,92953.0,0.5598]
[1745364258715,0.51980701,92954.0,92953.0,0.5598]
[1745364259923,0.51880701,92954.0,92953.0,0.5558]
[1745364260130,0.51980701,92954.0,92953.0,0.6673468]
[1745364260524,0.51980701,92954.0,92953.0,0.199]
[1745364260822,0.51880701,92954.0,92953.0,0.198]
[1745364261023,0.24880701,92954.0,92953.0,0.3055468]
[1745364261417,0.24980701,92954.0,92953.0,0.199]
[1745364261823,0.24980701,92954.0,92953.0,0.3065468]
[1745364262421,0.24880701,92954.0,92953.0,0.2995468]
[1745364262616,0.25080701,92954.0,92953.0,0.2995468]
[1745364263221,0.24980701,92954.0,92953.0,0.2995468]
[1745364263418,0.25080701,92954.0,92953.0,0.3035468]
[1745364264022,0.24980701,92954.0,92953.0,0.3065468]
[1745364264823,0.24980701,92954.0,92953.0,0.3025468]
[1745364265529,0.24880701,92954.0,92953.0,0.3025468]
[1745364265728,0.24980701,92954.0,92953.0,0.3065468]
[1745364265928,0.24980701,92954.0,92953.0,0.199]
[1745364266132,0.49980701,92954.0,92953.0,0.199]
[1745364267638,0.49880701,92954.0,92953.0,0.196]
[1745364267834,0.49980701,92954.0,92953.0,0.199]
[1745364271137,0.14226141,92954.0,92953.0,0.6673468]
[1745364271332,0.00216141,92954.0,92953.0,0.6673468]
[1745364271726,0.00216141,92954.0,92953.0,0.8073468]
[1745364271926,0.00216141,92954.0,92953.0,0.9468468]
[1745364274129,0.00216141,92954.0,92953.0,0.8068468]
[1745364274332,0.00216141,92954.0,92953.0,0.5558]
[1745364274333,0.10870701,92954.0,92953.0,0.5558]
[1745364274532,0.35870701,92954.0,92953.0,0.5578]
[1745364274732,0.35770701,92954.0,92953.0,0.5548]
[1745364274941,0.35770701,92954.0,92953.0,0.5558]
[1745364275238,0.63560701,92954.0,92953.0,0.5558]
[1745364275439,0.63760701,92954.0,92953.0,0.5558]
[1745364276940,0.63760701,92954.0,92953.0,0.5538]
[1745364277141,0.38960701,92954.0,92953.0,0.5538]
[1745364277342,0.38960701,92954.0,92953.0,0.6613468]
[1745364277640,0.00316141,92954.0,92953.0,0.6603468]
[1745364277841,0.00216141,92954.0,92953.0,0.6603468]
[1745364278046,0.00116141,92954.0,92953.0,0.8026468]
[1745364278243,0.00316141,92954.0,92953.0,0.8036468]
[1745364278634,0.00216141,92954.0,92953.0,0.8046468]
[1745364279039,1e-08,92954.0,92953.0,0.8046468]
[1745364279744,0.1075421,92960.0,92959.0,0.1065395]
[1745364280141,0.1075421,92960.0,92959.0,0.2985395]
[1745364280746,0.1075421,92960.0,92959.0,0.192]
[1745364281047,0.3975421,92960.0,92959.0,0.3343]
[1745364281247,0.3975421,92960.0,92959.0,0.4418398]
[1745364281647,0.3975421,92960.0,92959.0,0.4438398]
[1745364281848,0.3975421,92960.0,92959.0,0.3363]
[1745364283343,0.3985421,92960.0,92959.0,0.3353]
[1745364283748,0.3985421,92960.0,92959.0,0.4428398]
[1745364286354,0.3975421,92960.0,92959.0,0.4418398]
[1745364286546,0.3975421,92960.0,92959.0,0.4428398]
[1745364287664,0.3975421,92960.0,92959.0,0.3353]
[1745364288045,0.3985421,92960.0,92959.0,0.4428398]
[1745364289354,0.3985421,92960.0,92959.0,0.192]
[1745364290244,0.3985421,92960.0,92959.0,0.191]
[1745364290560,0.3985421,92960.0,92959.0,0.192]
[1745364290561,0.3975421,92960.0,92959.0,0.192]
[1745364290746,0.1075421,92960.0,92959.0,0.2995398]
[1745364291056,0.1075421,92960.0,92959.0,0.192]
[1745364292453,0.1085421,92960.0,92959.0,0.191]
[1745364292654,0.1105421,92960.0,92959.0,0.191]
[1745364292960,0.1095421,92960.0,92959.0,0.191]
[1745364293145,0.1095421,92960.0,92959.0,0.192]
[1745364293748,0.1095421,92960.0,92959.0,0.3329]
[1745364294256,0.1095421,92960.0,92959.0,0.3319]
[1745364294450,0.1085421,92960.0,92959.0,0.4757]
[1745364295248,0.1085421,92960.0,92959.0,0.3348]
[1745364295656,0.1085421,92960.0,92959.0,0.3358]
[1745364296758,0.1085421,92960.0,92959.0,0.3348]
[1745364296960,0.1095421,92960.0,92959.0,0.3348]
[1745364297444,0.1095421,92960.0,92959.0,0.3358]
[1745364298854,0.2541421,92960.0,92959.0,0.3358]
[1745364299850,0.2531421,92960.0,92959.0,0.3348]
[1745364300059,0.2531421,92960.0,92959.0,0.3358]
[1745364300254,0.2531421,92960.0,92959.0,0.192]
[1745364300458,0.5131421,92960.0,92959.0,0.192]
[1745364300654,0.5131421,92960.0,92959.0,0.191]
[1745364301865,0.3608,92966.0,92959.0,0.191]
[1745364301866,0.3608,92976.0,92959.0,0.441]
[1745364302158,0.0052,93016.0,93012.0,0.1074786]
[1745364302458,0.26335905,93013.0,93012.0,0.4672786]
[1745364302756,0.26335905,93013.0,93012.0,0.9108306]
[1745364303151,0.26335905,93013.0,93012.0,1.11430624]
[1745364303448,0.26435905,93013.0,93012.0,0.8528306]
[1745364303957,0.26535905,93013.0,93012.0,0.8588306]
[1745364304162,0.00016131,93022.0,93012.0,1.01494646]
[1745364304459,0.1443,93035.0,93024.0,0.1074647]
[1745364304661,1e-08,93025.0,93024.0,0.4682647]
[1745364304848,1e-08,93025.0,93024.0,0.5757647]
[1745364305051,1e-08,93025.0,93024.0,0.56498277]
[1745364305253,1e-08,93025.0,93024.0,0.77638277]
[1745364305565,1e-08,93025.0,93024.0,0.77538277]
[1745364305753,0.10846351,93025.0,93024.0,0.6653]
[1745364306151,0.00100001,93025.0,93024.0,0.7727647]
[1745364306457,0.00100001,93025.0,93024.0,0.7787647]
[1745364306458,0.002,93025.0,93024.0,0.7787647]
[1745364306658,0.002,93025.0,93024.0,0.7991647]
[1745364308259,0.43500386,93078.0,93029.0,0.0537292]
[1745364308454,0.0537132,93058.0,93057.0,0.34948431]
[1745364308657,0.0537132,93058.0,93057.0,0.71028431]
[1745364308860,0.1859132,93058.0,93057.0,0.71028431]
[1745364309056,0.1859132,93058.0,93057.0,0.90228431]
[1745364309657,0.1322,93058.0,93057.0,0.90228431]
[1745364310262,0.1322,93058.0,93057.0,0.90428431]
[1745364310863,0.1322,93058.0,93057.0,1.01171091]
[1745364312571,0.1322,93058.0,93057.0,0.90428431]
[1745364313569,0.1322,93058.0,93057.0,1.01171091]
[1745364314269,0.1322,93058.0,93057.0,0.90428431]
[1745364315870,0.2396254,93058.0,93057.0,0.68398431]
[1745364316269,0.0537165,93052.0,93048.0,0.00016123]
[1745364316472,0.1074358,93049.0,93048.0,0.00016123]
[1745364316967,0.2771,93051.0,93048.0,0.00016123]
[1745364317167,0.1074347,93050.0,93049.0,0.3608]
[1745364317559,0.2771,93050.0,93049.0,0.3608]
[1745364318163,0.2771,93050.0,93049.0,0.5528]
[1745364319074,0.3845347,93050.0,93049.0,0.5518]
[1745364319762,0.3875347,93050.0,93049.0,0.5518]
[1745364321185,0.3845347,93050.0,93049.0,0.5518]
[1745364321483,0.3855347,93050.0,93049.0,0.5518]
[1745364322183,0.2801,93050.0,93049.0,0.5518]
[1745364322382,0.3895347,93050.0,93049.0,0.5518]
[1745364322884,0.3875347,93050.0,93049.0,0.5518]
[1745364323273,0.3895347,93050.0,93049.0,0.5518]
[1745364323676,0.053703,93075.0,93056.0,0.0537137]
[1745364323875,0.10742,93063.0,93059.0,0.3608]
[1745364324078,0.01139848,93066.0,93059.0,0.34778899]
[1745364324278,0.0537088,93065.0,93059.0,0.34778899]
[1745364324790,0.01139848,93066.0,93059.0,0.34778899]
[1745364324986,0.1407,93060.0,93059.0,0.34778899]
[1745364325282,0.1407,93060.0,93059.0,0.53978899]
[1745364325678,0.1387,93060.0,93059.0,0.53978899]
[1745364325879,0.1387,93060.0,93059.0,0.54789847]
[1745364328482,0.4096,93060.0,93059.0,0.54789847]
[1745364329490,0.27261499,93060.0,93059.0,0.54789847]
[1745364330081,0.48749809,93060.0,93059.0,0.54789847]
[1745364330379,0.48749809,93060.0,93059.0,0.20010948]
[1745364331084,0.73749809,93060.0,93059.0,0.20010948]
[1745364331289,0.48749809,93060.0,93059.0,0.20010948]
[1745364331785,0.4857831,93060.0,93059.0,0.20010948]
[1745364331985,0.4857831,93060.0,93059.0,0.20110948]
[1745364332387,0.4867831,93060.0,93059.0,0.20110948]
[1745364332786,0.4857831,93060.0,93059.0,0.20110948]
[1745364333989,0.2709,93060.0,93059.0,0.20110948]
[1745364334288,0.3783231,93060.0,93059.0,0.21370048]
[1745364334494,0.2709,93060.0,93059.0,0.21370048]
[1745364334688,0.2709,93060.0,93059.0,0.23048781]
[1745364334887,0.2709,93060.0,93059.0,0.21370048]
[1745364335083,0.3923231,93060.0,93059.0,0.21370048]
[1745364335590,0.3923231,93060.0,93059.0,0.23048778]
[1745364335793,0.3923231,93060.0,93059.0,0.21789678]
[1745364335996,0.2849,93060.0,93059.0,0.20110948]
[1745364336191,0.2849,93060.0,93059.0,0.21789674]
[1745364336392,0.2849,93060.0,93059.0,0.20110948]
[1745364336691,0.2849,93060.0,93059.0,0.21789688]
[1745364336894,0.2849,93060.0,93059.0,0.49829688]
[1745364337085,0.1505,93060.0,93059.0,0.49729688]
[1745364337290,0.1505,93060.0,93059.0,0.49829688]
[1745364337593,0.1505,93060.0,93059.0,0.48150948]
[1745364337895,0.1505,93060.0,93059.0,0.48050948]
[1745364338093,0.1505,93060.0,93059.0,0.48150948]
[1745364339802,0.1074114,93071.0,93060.0,0.0537114]
[1745364340101,0.1074125,93070.0,93068.0,0.3608]
[1745364340301,0.2490125,93070.0,93069.0,0.4268]
[1745364341093,0.26052979,93070.0,93069.0,0.6188]
[1745364342096,0.3608,93092.0,93069.0,0.6188]
[1745364342288,0.0536983,93083.0,93078.0,0.47824091]
[1745364342492,0.01168842,93088.0,93079.0,0.2812]
[1745364342689,0.3608,93092.0,93079.0,0.2812]
[1745364342886,0.0536954,93088.0,93079.0,0.2812]
[1745364343085,0.0536943,93090.0,93079.0,0.4732]
[1745364343291,0.1073938,93086.0,93079.0,0.4732]
[1745364343486,0.003,93088.0,93079.0,0.4732]
[1745364343693,0.1073926,93087.0,93079.0,0.4732]
[1745364343891,0.1073926,93087.0,93079.0,0.5806011]
[1745364344091,0.06789014,93088.0,93079.0,0.5806011]
[1745364344290,0.01419454,93088.0,93079.0,0.4732]
[1745364344493,0.06789004,93088.0,93079.0,0.4732]
[1745364344797,0.1073947,93085.0,93079.0,0.4732]
[1745364345097,0.1073933,93086.0,93079.0,0.5806012]
[1745364345299,0.002,93087.0,93079.0,0.4732]
[1745364345602,0.002,93087.0,93082.0,0.1073968]
[1745364345798,0.0536912,93096.0,93079.0,0.4732]
[1745364345799,0.4149,93109.0,93089.0,0.0536948]
[1745364346096,0.3608,93110.0,93099.0,0.34988128]
[1745364346299,0.01113637,93101.0,93099.0,0.34988128]
[1745364346490,0.0536847,93107.0,93099.0,0.34588128]
[1745364346701,0.1326,93109.0,93099.0,0.34588128]
[1745364346897,0.103,93100.0,93099.0,0.34588128]
[1745364347103,0.103,93100.0,93099.0,0.64525938]
[1745364347300,0.3144662,93139.0,93099.0,0.89529328]
[1745364347497,0.1073485,93125.0,93120.0,0.12763595]
[1745364347696,0.0536725,93128.0,93121.0,0.1441]
[1745364347898,0.0536729,93127.0,93126.0,0.3608]
[1745364348204,0.3407729,93127.0,93126.0,0.3608]
[1745364348405,0.35212043,93127.0,93126.0,0.3608]
[1745364348700,0.3407729,93127.0,93126.0,0.3608]
[1745364348898,0.2871,93127.0,93126.0,0.3608]
[1745364349108,0.3944458,93127.0,93126.0,0.5528]
[1745364349304,0.1437,93127.0,93126.0,0.5528]
[1745364349601,0.01133955,93131.0,93126.0,0.5528]
[1745364349807,0.1434,93134.0,93127.0,0.1441]
[1745364350010,0.1073404,93132.0,93127.0,0.1441]
[1745364350407,0.1367,93133.0,93127.0,0.1441]
[1745364350796,0.2440391,93133.0,93127.0,0.1441]
[1745364351109,0.05367,93132.0,93127.0,0.3361]
[1745364351304,0.19197,93132.0,93127.0,0.3361]
[1745364351508,0.1367,93131.0,93127.0,0.3361]
[1745364352101,0.1367,93131.0,93127.0,0.20024735]
[1745364352102,0.1073447,93128.0,93127.0,0.20024735]
[1745364352301,0.1073447,93128.0,93127.0,0.20224735]
[1745364352609,0.1073447,93128.0,93127.0,0.20324735]
[1745364352807,0.1073447,93128.0,93127.0,0.20124735]
[1745364352999,0.1073447,93128.0,93127.0,0.20424735]
[1745364353200,0.1073447,93128.0,93127.0,0.20324735]
[1745364353404,0.1073447,93128.0,93127.0,0.20724735]
[1745364353708,0.1073447,93128.0,93127.0,0.20824735]
[1745364355205,0.1083447,93128.0,93127.0,0.20024735]
[1745364356304,0.1083447,93128.0,93127.0,0.20224735]
[1745364357106,0.1073447,93128.0,93127.0,0.20224735]
[1745364357806,0.1383,93130.0,93127.0,0.20324735]
[1745364358007,0.1438,93129.0,93128.0,0.1346]
[1745364358212,0.0536558,93157.0,93129.0,0.09653581]
[1745364358410,0.0536562,93156.0,93155.0,0.3608]
[1745364358707,0.0536568,93155.0,93151.0,0.3608]
[1745364358905,0.06449739,93155.0,93151.0,0.3608]
[1745364359207,0.15594019,93154.0,93152.0,0.1408]
[1745364359414,0.1567232,93154.0,93152.0,0.1408]
[1745364359608,0.01084019,93153.0,93152.0,0.1408]
[1745364360200,0.01084019,93153.0,93152.0,0.3328]
[1745364361006,0.01084019,93153.0,93152.0,0.3258]
[1745364361212,0.01084019,93153.0,93151.0,0.3608]
[1745364361408,0.40025719,93152.0,93151.0,0.3608]
[1745364361819,0.3608,93197.0,93151.0,1.078952]
[1745364362018,0.29434019,93199.0,93188.0,0.3608]
[1745364362309,0.15734019,93199.0,93198.0,0.4640641]
[1745364362507,0.0052,93208.0,93198.0,0.6815786]
[1745364362706,0.00160971,93250.0,93229.0,0.1072284]
[1745364362707,0.2608,93230.0,93229.0,0.1072284]
[1745364362907,0.01084019,93229.0,93220.0,0.12963595]